bitfinex/quotes_ETHUSD_20220212
["timestamp","ask_amount","ask_price","bid_price","bid_amount"]
[1644693908818,0.1688,2962.3,2961.4,0.485]
[1644693909014,0.1688,2962.4,2961.4,0.485]
[1644693910116,0.1688,2962.4,2961.5,0.73444263]
[1644693910313,0.01014878,2962.0,2961.5,0.73444263]
[1644693910715,0.01014878,2962.0,2961.6,0.84382]
[1644693910916,0.01014878,2962.0,2961.7,0.485]
[1644693911321,0.1688,2962.6,2961.7,0.485]
[1644693911523,0.1686,2962.8,2961.7,0.485]
[1644693911722,7.32650597,2963.2,2961.8,20.68262]
[1644693911723,0.01014887,2962.0,2961.8,20.68262]
[1644693911920,0.01014887,2962.0,2961.9,2.17243]
[1644693912122,0.01014887,2962.0,2961.9,2.34123]
[1644693912662,0.1688,2963.1,2961.9,2.34123]
[1644693912859,0.01014868,2962.1,2961.9,2.34123]
[1644693913460,0.01014868,2962.1,2962.0,0.76562224]
[1644693913761,0.1688,2963.1,2962.0,2.09433224]
[1644693913961,1.43617679,2963.0,2962.9,0.83342293]
[1644693914162,3.5,2963.4,2962.1,6.9]
[1644693914366,10.71662843,2964.1,2962.8,0.6099]
[1644693914367,3.0258,2963.8,2962.8,0.6099]
[1644693914564,0.63691718,2963.9,2962.8,21.2794]
[1644693914762,7.03522846,2964.1,2962.9,2.17183]
[1644693914763,7.84074564,2964.1,2962.9,2.17183]
[1644693914963,4.62972846,2964.1,2963.0,1.68682]
[1644693915166,0.0045741,2963.3,2963.1,0.485]
[1644693915565,0.0045741,2963.3,2963.2,19.67]
[1644693915764,0.01829366,2963.8,2963.3,8.58654]
[1644693916026,0.01829366,2963.8,2963.4,20.155]
[1644693916218,0.63691718,2964.8,2963.6,12.965]
[1644693916420,0.80551718,2965.2,2963.7,5.82012778]
[1644693916617,0.63691718,2965.1,2963.8,19.67]
[1644693916818,0.63691718,2965.2,2963.9,5.35886179]
[1644693917118,0.80551718,2965.2,2964.2,1.68607]
[1644693917318,0.58691718,2965.3,2964.3,22.31200223]
[1644693917519,0.1686,2965.5,2964.4,23.13901404]
[1644693917722,0.03061695,2965.9,2964.5,5.41248036]
[1644693917919,0.03061695,2965.9,2964.6,1.0]
[1644693918118,0.03061695,2965.9,2964.7,4.34048869]
[1644693918318,0.03061695,2965.9,2965.8,0.79080306]
[1644693918521,1.50530735,2965.4,2965.0,0.64253144]
[1644693918820,1.51545621,2965.4,2965.0,0.64253144]
[1644693919019,1.51545621,2965.4,2965.0,18.78154548]
[1644693919428,1.51545621,2965.4,2964.9,0.485]
[1644693919860,1.51545621,2965.4,2964.3,1.0]
[1644693919861,1.50530735,2965.4,2964.3,19.67]
[1644693920061,0.01014915,2965.3,2964.3,19.67]
[1644693920460,0.01014915,2965.3,2964.7,0.64605428]
[1644693920665,0.01014915,2965.3,2964.3,19.67]
[1644693921066,1.50530735,2965.4,2964.3,19.67]
[1644693921265,0.01014981,2964.9,2964.2,2.42107]
[1644693921467,0.01014981,2964.9,2964.2,2.17107]
[1644693921864,0.01014981,2964.9,2964.6,0.82585188]
[1644693922265,1.54590049,2965.4,2964.6,0.82585188]
[1644693922266,1.50530735,2965.4,2964.6,0.82585188]
[1644693922467,0.0101499,2964.9,2964.6,0.82585188]
[1644693922667,0.0101499,2964.9,2964.0,1.1686]
[1644693922970,0.0101499,2964.9,2964.0,0.6036]
[1644693923266,0.1686,2965.3,2964.0,0.6036]
[1644693923515,1.50530735,2965.4,2964.0,0.1186]
[1644693923516,0.1686,2965.2,2964.0,0.1186]
[1644693923711,1.50530735,2965.4,2964.4,0.66517243]
[1644693923712,0.00955491,2964.6,2964.4,0.66517243]
[1644693924114,0.00955491,2964.6,2963.6,0.00955812]
[1644693924510,0.1686,2964.9,2963.7,3.1]
[1644693924915,0.00955557,2964.2,2963.7,3.1]
[1644693925113,0.00955557,2964.2,2963.8,0.82580297]
[1644693925317,0.00955557,2964.2,2963.9,23.36337016]
[1644693925518,0.03821654,2964.7,2964.2,6.9]
[1644693925713,3.3318,2965.3,2964.3,4.26889978]
[1644693925917,3.1828,2965.7,2964.3,4.26889978]
[1644693926119,0.71157857,2965.6,2964.9,0.78733132]
[1644693926919,10.25,2965.3,2963.8,1.68641]
[1644693927122,0.01292092,2965.0,2964.1,0.00561538]
[1644693927365,6.284123,2964.9,2964.1,0.00561538]
[1644693927566,4.130523,2964.8,2964.1,0.00561538]
[1644693927764,0.6536,2964.7,2964.1,0.00561538]
[1644693927964,10.38444574,2964.6,2964.1,0.00561538]
[1644693928168,0.6536,2964.5,2962.9,0.25]
[1644693928466,3.5,2964.4,2964.1,0.01015226]
[1644693928763,0.66375056,2964.5,2964.1,0.01015226]
[1644693928764,0.485,2964.3,2964.1,0.01015226]
[1644693928964,0.485,2964.2,2964.1,0.01015226]
[1644693929364,0.485,2964.2,2962.9,0.25]
[1644693929564,0.485,2964.2,2964.0,0.01015205]
[1644693929964,3.31350647,2964.1,2964.0,0.01015205]
[1644693930165,3.79850647,2964.1,2964.0,0.01015205]
[1644693930365,0.485,2964.1,2964.0,0.01015205]
[1644693930565,0.485,2964.1,2963.4,0.86395543]
[1644693930566,1.28614254,2964.1,2963.4,0.86395543]
[1644693930771,1.28614254,2964.1,2963.9,0.01015224]
[1644693931025,0.485,2964.1,2963.9,0.01015224]
[1644693931513,3.49407181,2964.0,2963.9,0.01015224]
[1644693931714,3.97907181,2964.0,2962.9,0.2]
[1644693931914,0.485,2964.0,2962.8,21.35697]
[1644693932116,3.33817326,2963.9,2962.8,21.35697]
[1644693932314,0.63930725,2963.9,2963.2,0.70922783]
[1644693932915,3.99505126,2963.9,2962.8,21.35697]
[1644693933318,0.485,2963.8,2963.4,0.01015319]
[1644693933514,3.39435695,2963.7,2963.4,0.01015319]
[1644693934016,3.87935695,2963.7,2963.4,0.01015319]
[1644693934318,0.485,2963.7,2963.4,0.01015319]
[1644693935358,0.485,2963.7,2963.0,0.80774192]
[1644693935558,0.485,2963.7,2963.4,0.01015319]
[1644693935758,4.46086366,2964.5,2963.4,0.01015319]
[1644693935759,0.485,2964.1,2963.4,0.01015319]
[1644693935970,4.46086366,2964.5,2963.4,1.09375319]
[1644693935971,0.485,2964.4,2963.4,1.09375319]
[1644693936163,1.43557903,2964.3,2963.4,1.26235319]
[1644693936363,0.485,2964.4,2963.4,1.26235319]
[1644693936562,0.485,2964.4,2963.4,1.2522]
[1644693936762,0.485,2964.4,2963.8,0.8548051]
[1644693936763,1.12300275,2964.4,2963.8,0.8548051]
[1644693937364,0.66689352,2963.4,2963.3,0.96404488]
[1644693939210,0.66689352,2963.4,2963.2,19.67]
[1644693939211,0.66689352,2963.4,2963.2,0.00561699]
[1644693940210,0.66689352,2963.4,2962.8,19.8386]
[1644693940412,0.66689352,2963.4,2963.2,0.77969607]
[1644693941520,0.66689352,2963.4,2963.2,0.77407898]
[1644693941717,0.66689352,2963.4,2963.2,0.78423264]
[1644693942119,3.33357511,2963.3,2963.2,0.01015366]
[1644693942368,0.66689352,2963.4,2963.2,0.01015366]
[1644693942565,0.66689352,2963.4,2962.4,0.25]
[1644693942566,0.485,2963.3,2962.4,0.25]
[1644693942765,0.485,2963.3,2961.7,0.1686]
[1644693942766,0.6536,2963.3,2961.7,0.1686]
[1644693943166,0.85018829,2962.9,2962.4,0.67804597]
[1644693943366,0.485,2963.0,2962.4,0.67804597]
[1644693944068,0.485,2963.0,2962.6,0.01016132]
[1644693945071,0.485,2963.0,2962.4,0.67804597]
[1644693945367,3.35811582,2962.9,2962.7,0.01016113]
[1644693945566,3.36309523,2962.9,2962.7,0.01016113]
[1644693945767,3.73350384,2963.1,2962.7,0.01016113]
[1644693946212,3.73350384,2963.1,2962.4,0.67804597]
[1644693946415,3.73350384,2963.1,2962.8,0.01016094]
[1644693947414,3.73350384,2963.1,2962.4,0.67804597]
[1644693947614,3.73350384,2963.1,2962.8,0.01016084]
[1644693947615,3.56490384,2963.1,2962.8,0.01016084]
[1644693947816,0.66689352,2963.4,2962.8,0.01016084]
[1644693948216,0.66689352,2963.4,2962.7,0.80375084]
[1644693949417,0.66689352,2963.4,2962.8,19.67]
[1644693949618,0.66689352,2963.4,2962.8,19.97]
[1644693949865,0.66689352,2963.4,2962.9,1.0]
[1644693950064,0.67144418,2963.4,2963.0,19.67]
[1644693950464,0.67144418,2963.4,2963.1,1.67242318]
[1644693951068,3.3304,2964.2,2963.1,1.97242318]
[1644693951269,2.15366673,2964.8,2963.3,19.67]
[1644693951270,0.00455089,2963.4,2963.3,19.67]
[1644693951476,0.0182009,2963.8,2963.5,19.67]
[1644693951671,0.0182009,2963.8,2963.5,20.6321]
[1644693951868,0.0182009,2963.8,2963.7,19.67]
[1644693952066,0.0182009,2963.8,2963.7,20.42859849]
[1644693952267,3.5,2964.7,2964.6,0.82590125]
[1644693952467,1.43546,2964.7,2963.7,1.3]
[1644693952668,1.43546,2964.6,2963.8,1.0]
[1644693952866,1.43546,2964.6,2963.7,1.3]
[1644693952867,1.43546,2964.6,2963.7,0.3]
[1644693953269,1.43546,2964.6,2963.4,1.98649]
[1644693953270,1.43546,2964.6,2963.4,0.6]
[1644693953514,1.43546,2964.6,2963.2,1.25]
[1644693953515,1.43546,2964.6,2963.3,0.3]
[1644693953707,0.630523,2964.8,2964.1,0.84312741]
[1644693953910,0.630523,2964.7,2964.1,0.84312741]
[1644693954107,0.630523,2964.8,2964.1,0.84312741]
[1644693954909,0.0045498,2964.6,2964.1,0.84312741]
[1644693955309,0.6350728,2964.6,2963.5,19.67]
[1644693955509,3.47164216,2964.5,2963.5,19.67]
[1644693955809,0.630523,2964.6,2963.5,19.67]
[1644693956009,0.01016005,2964.2,2963.5,19.67]
[1644693956615,0.01016005,2964.2,2964.0,0.68353871]
[1644693957016,0.630523,2964.5,2964.0,0.68353871]
[1644693957017,0.84648538,2964.5,2964.0,0.68353871]
[1644693957263,0.01015996,2964.2,2963.5,19.67]
[1644693958263,3.33865853,2964.5,2963.5,19.67]
[1644693958563,0.01016043,2964.0,2963.6,1.70334729]
[1644693958767,0.8492229,2964.8,2963.6,1.70334729]
[1644693958768,0.80648998,2965.0,2963.9,26.57]
[1644693958966,5.64319733,2965.4,2964.0,0.485]
[1644693959164,5.64319733,2965.4,2964.3,0.84301]
[1644693959367,2.14319733,2965.4,2964.5,19.67]
[1644693959767,2.14319733,2965.4,2964.6,20.67]
[1644693960066,2.14319733,2965.4,2964.4,1.92795]
[1644693960067,1.53081377,2964.5,2964.4,1.92795]
[1644693960266,1.53081377,2964.5,2964.4,21.99795]
[1644693960466,1.53081377,2964.5,2964.4,1.0]
[1644693960668,0.03081377,2964.5,2964.4,1.0]
[1644693960867,0.03081377,2964.5,2964.4,0.81052155]
[1644693963928,3.83592169,2966.0,2964.7,6.9]
[1644693964136,1.27638455,2966.2,2965.4,0.74679226]
[1644693964328,6.9922,2966.8,2965.4,0.74679226]
[1644693964329,1.27638455,2966.4,2965.5,19.67]
[1644693964532,1.27638455,2966.7,2965.6,3.5]
[1644693964763,1.27638455,2966.7,2965.6,0.785]
[1644693964965,3.1793,2966.8,2965.7,20.67]
[1644693964966,4.45568455,2966.8,2965.7,20.67]
[1644693965163,4.45568455,2966.8,2965.6,2.62777]
[1644693965365,1.27638455,2966.7,2965.5,0.1685]
[1644693965564,1.27638455,2966.7,2965.1,7.2995]
[1644693965565,1.27638455,2966.5,2965.1,7.2995]
[1644693965764,1.44488455,2966.5,2965.0,5.34593]
[1644693965970,1.44488455,2966.5,2965.2,1.0]
[1644693966168,1.44488455,2966.5,2965.1,3.5]
[1644693966869,1.44488455,2966.5,2965.0,4.74593]
[1644693967074,1.27638455,2966.4,2965.0,3.0602]
[1644693967272,0.1685,2966.3,2965.0,3.0602]
[1644693967474,0.1685,2966.4,2964.8,0.25]
[1644693967673,1.76138455,2966.5,2964.8,0.25]
[1644693967674,1.44488455,2966.2,2964.8,0.25]
[1644693967871,1.27638455,2966.2,2964.8,0.25]
[1644693968071,0.01018979,2965.7,2965.2,0.01019184]
[1644693968719,0.44518979,2966.1,2965.2,0.01019184]
[1644693969120,0.44518979,2966.1,2964.5,0.25]
[1644693969121,0.03057552,2965.1,2964.5,0.25]
[1644693969419,0.03057552,2965.1,2964.6,0.1686]
[1644693969622,0.53961636,2965.8,2964.7,4.5]
[1644693969819,0.53961636,2965.8,2964.8,0.1686]
[1644693970422,0.53961636,2965.8,2964.3,7.1604]
[1644693970423,0.1686,2965.7,2964.3,7.1604]
[1644693970920,0.1686,2965.7,2964.4,1.0]
[1644693971824,3.1551,2966.3,2964.4,1.0]
[1644693971825,0.44215245,2966.5,2964.9,5.0]
[1644693972024,0.00260585,2966.7,2965.1,19.67]
[1644693972269,0.00260585,2966.7,2965.4,0.01281563]
[1644693972466,0.00260585,2966.8,2965.5,0.6535]
[1644693972663,2.20762627,2967.3,2965.5,0.6535]
[1644693972865,2.92732938,2967.3,2965.6,3.5]
[1644693973064,0.00446595,2966.2,2965.7,1.96461]
[1644693973267,0.00446595,2966.2,2965.7,1.9535]
[1644693973564,1.43468019,2966.1,2965.7,0.6535]
[1644693973767,1.43468019,2966.1,2965.7,1.1685]
[1644693973964,1.43468019,2966.0,2965.7,0.1685]
[1644693974165,0.00260585,2966.7,2965.7,0.1685]
[1644693974166,0.00446595,2966.1,2965.7,0.1685]
[1644693974363,0.01786085,2966.6,2965.8,6.9]
[1644693974566,0.01786085,2966.6,2965.9,3.985]
[1644693974765,0.01786085,2966.6,2966.2,19.67]
[1644693974967,0.01786085,2966.6,2966.2,20.155]
[1644693975167,0.63673567,2967.0,2966.2,20.155]
[1644693975364,0.00260585,2966.9,2966.3,1.0]
[1644693975565,0.63673567,2967.0,2966.3,1.1685]
[1644693975765,0.63673567,2967.0,2965.7,2.82751]
[1644693975766,0.63673567,2966.8,2965.8,0.6535]
[1644693976011,0.00260585,2966.7,2965.8,0.6535]
[1644693976216,0.00260585,2966.7,2965.6,0.1685]
[1644693976217,0.63673567,2966.6,2965.6,0.1685]
[1644693976615,0.63673567,2966.6,2965.5,0.1685]
[1644693977017,0.00260585,2966.8,2965.5,3.56793146]
[1644693977216,0.00260585,2966.8,2965.5,3.86793146]
[1644693977415,0.00260585,2966.8,2965.6,1.0]
[1644693977618,0.00260585,2966.8,2965.7,3.60655057]
[1644693977815,0.00260585,2966.8,2965.8,1.0]
[1644693977816,0.0044626,2966.3,2965.8,1.0]
[1644693978017,0.0044626,2966.3,2965.9,0.1685]
[1644693978617,0.00260585,2967.0,2965.9,0.1685]
[1644693978815,0.00260585,2967.0,2965.7,1.1685]
[1644693979017,0.01019339,2966.2,2965.7,1.0]
[1644693979216,0.01019339,2966.2,2965.5,1.17869587]
[1644693979417,0.01019339,2966.2,2965.5,3.74774348]
[1644693979860,0.63934152,2967.0,2965.7,0.84277]
[1644693980060,0.01019301,2966.2,2965.8,0.1685]
[1644693980262,0.01019301,2966.2,2965.6,1.0]
[1644693980263,0.337,2965.7,2965.5,0.01019549]
[1644693981164,0.337,2965.7,2965.4,2.085]
[1644693981366,0.337,2965.7,2965.5,0.01019537]
[1644693981964,0.337,2965.7,2965.6,0.84273]
[1644693982366,0.337,2965.7,2965.6,1.14273]
[1644693983518,0.337,2965.7,2965.6,0.3]
[1644693983910,0.337,2965.7,2965.5,0.01022255]
[1644693984712,0.337,2965.7,2965.4,1.485]
[1644693984911,0.337,2965.7,2965.5,0.01022264]
[1644693985516,0.0102199,2966.2,2965.7,0.84277]
[1644693985713,0.04347773,2966.8,2966.0,1.68488]
[1644693985912,0.00260585,2967.0,2966.1,0.485]
[1644693986117,0.00260585,2967.1,2966.1,0.6535]
[1644693986317,0.01022605,2966.2,2966.1,0.6535]
[1644693987118,3.50260585,2967.2,2966.1,0.6535]
[1644693987360,0.00260585,2967.2,2966.1,0.6535]
[1644693987563,3.50260585,2967.2,2966.1,0.485]
[1644693987760,3.50260585,2967.2,2965.7,5.1583]
[1644693987761,0.8117658,2967.1,2965.7,5.1583]
[1644693987961,3.75193882,2967.0,2965.7,5.1583]
[1644693988365,0.00260585,2967.0,2965.7,22.56829]
[1644693988562,0.00260585,2967.2,2965.9,0.00544339]
[1644693988960,0.00260585,2967.2,2965.9,19.67544339]
[1644693989361,0.00260585,2967.2,2966.2,0.84253]
[1644693989563,0.00260585,2967.2,2966.4,1.68491]
[1644693989761,0.00260585,2967.2,2966.5,4.19886295]
[1644693989762,0.00989456,2966.7,2966.5,4.19886295]
[1644693989962,0.00989456,2966.7,2966.6,3.47129692]
[1644693990263,1.30125291,2967.3,2966.7,6.9]
[1644693990264,0.00260585,2967.2,2966.7,6.9]
[1644693990462,0.84911172,2968.0,2966.7,6.9]
[1644693990463,0.00260585,2967.5,2966.9,19.67]
[1644693990667,0.00260585,2967.2,2967.0,0.485]
[1644693990867,0.00260585,2968.0,2967.1,23.4358]
[1644693991118,0.63673567,2968.6,2967.3,1.93705]
[1644693991119,0.00260585,2968.2,2967.3,1.93705]
[1644693991321,0.17090585,2968.5,2967.4,0.485]
[1644693991518,0.00260585,2968.5,2967.4,0.48115518]
[1644693991717,0.63934152,2968.5,2967.4,0.48115518]
[1644693991918,0.63673567,2968.6,2967.4,0.48115518]
[1644693992118,0.00260585,2968.4,2967.4,0.48115518]
[1644693992417,0.63673567,2968.7,2967.4,0.48115518]
[1644693992717,0.00260585,2968.6,2967.5,3.46556508]
[1644693992918,0.00260585,2968.6,2967.5,3.95056508]
[1644693993316,0.00260585,2968.6,2967.6,1.0]
[1644693993717,0.00260585,2968.6,2967.5,3.95056508]
[1644693993918,0.63673567,2968.5,2967.5,3.95056508]
[1644693994116,0.63673567,2968.5,2967.5,0.485]
[1644693994317,0.00260585,2968.4,2967.5,0.485]
[1644693994519,0.00963599,2968.1,2967.5,0.485]
[1644693994762,0.00963599,2968.1,2967.5,3.91]
[1644693994763,1.4339563,2968.0,2967.5,3.91]
[1644693995567,1.3339563,2968.0,2967.6,1.0]
[1644693995767,0.00980222,2967.9,2967.6,1.485]
[1644693995967,0.00980222,2967.9,2967.6,0.485]
[1644693996576,0.00980222,2967.9,2967.2,3.753]
[1644693996577,0.00980222,2967.9,2967.3,1.0]
[1644693996773,0.63934152,2968.7,2967.3,0.4683]
[1644693996974,0.00260585,2968.4,2967.3,0.1683]
[1644693997172,0.63673567,2968.6,2967.2,0.485]
[1644693997173,0.00980222,2967.9,2967.2,0.485]
[1644693997374,0.00980222,2967.9,2967.2,1.485]
[1644693997973,0.00260585,2968.4,2967.2,1.0]
[1644693998173,0.00980259,2967.7,2967.3,0.4683]
[1644693998817,0.00980259,2967.7,2967.3,3.75391762]
[1644693999012,0.00980259,2967.7,2967.3,0.1683]
[1644693999212,0.00260585,2968.3,2967.3,0.1683]
[1644693999413,0.00964245,2967.6,2967.3,0.1683]
[1644694000215,0.00964245,2967.6,2967.1,3.40453412]
[1644694000416,0.00260585,2968.3,2967.1,3.40453412]
[1644694000615,0.00964254,2967.6,2967.1,3.40453412]
[1644694001523,0.66536656,2968.3,2967.1,3.40453412]
[1644694001723,0.00964272,2967.5,2967.1,3.40453412]
[1644694002261,0.00964272,2967.5,2967.1,6.88535199]
[1644694002461,0.00964272,2967.5,2967.1,3.40453412]
[1644694002663,1.30210223,2968.3,2967.1,3.40453412]
[1644694002860,1.30210223,2968.3,2967.1,3.57283412]
[1644694003062,0.00965365,2967.4,2967.1,3.40453412]
[1644694003862,0.00260585,2968.0,2967.1,3.40453412]
[1644694004262,0.00965374,2967.4,2967.1,3.40453412]
[1644694005165,0.63673567,2968.0,2967.1,3.40453412]
[1644694005365,0.00965374,2967.4,2967.1,3.40453412]
[1644694005565,0.00965374,2967.4,2967.0,1.2588552]
[1644694005566,0.00965374,2967.4,2967.0,0.0096552]
[1644694006418,0.17110585,2967.5,2966.0,0.1685]
[1644694006623,0.72254347,2966.9,2966.0,0.1685]
[1644694006822,0.00260585,2966.8,2966.0,1.01122]
[1644694007019,0.00965927,2967.3,2966.0,4.44251461]
[1644694007218,0.00965927,2967.3,2966.0,4.74251461]
[1644694007417,0.00965927,2967.3,2966.1,1.0]
[1644694007617,3.16260585,2967.4,2966.1,1.0]
[1644694007618,3.16260585,2967.4,2966.2,0.1685]
[1644694007817,0.00965877,2967.2,2966.5,0.00966121]
[1644694008820,3.16260585,2967.4,2966.2,0.1685]
[1644694009022,0.00965907,2967.2,2966.7,0.00966085]
[1644694010063,3.16260585,2967.4,2966.0,0.1685]
[1644694010265,0.00965276,2967.2,2966.8,0.00965421]
[1644694011270,3.16260585,2967.4,2966.0,0.1685]
[1644694011469,0.00441541,2967.2,2966.0,0.1685]
[1644694011669,0.69059378,2967.0,2966.0,0.1685]
[1644694011871,0.00260585,2966.9,2966.0,0.1685]
[1644694013073,0.3636,2966.6,2965.5,0.25]
[1644694013271,4.1635584,2966.5,2965.4,1.1875]
[1644694013522,4.70591405,2966.8,2965.4,1.1875]
[1644694013716,0.1685,2966.7,2965.4,1.1875]
[1644694013916,0.00260585,2966.6,2965.8,0.01025334]
[1644694014116,0.7632599,2966.3,2965.8,0.01025334]
[1644694014721,3.45166225,2966.2,2965.8,0.01025334]
[1644694014919,0.7632599,2966.3,2965.3,0.1685]
[1644694015119,3.55240046,2966.2,2965.9,0.01025314]
[1644694015319,3.44661207,2966.2,2965.9,0.01025314]
[1644694015719,1.43470749,2966.1,2965.9,0.01025314]
[1644694015921,3.40202044,2966.2,2965.9,0.01025314]
[1644694016119,3.40202044,2966.2,2965.0,0.1685]
[1644694016320,3.40202044,2966.2,2965.9,0.01025314]
[1644694016321,1.43465443,2966.1,2965.9,0.01025314]
[1644694016721,1.43465443,2966.0,2965.9,0.01025314]
[1644694017125,1.43465443,2966.2,2965.0,0.1685]
[1644694017362,4.89993452,2966.1,2965.8,0.01025334]
[1644694017562,1.43465443,2966.0,2965.8,0.01025334]
[1644694017761,4.09300858,2966.3,2965.8,0.01025334]
[1644694017962,1.43468623,2966.2,2965.8,0.01025334]
[1644694018463,1.43468623,2966.2,2964.9,0.1685]
[1644694018664,3.44205298,2966.1,2965.9,0.01025324]
[1644694018863,4.26019653,2966.3,2965.9,0.01025324]
[1644694019063,1.43466861,2966.2,2965.9,0.01025324]
[1644694019265,3.49525101,2966.1,2965.9,0.01025324]
[1644694019466,1.43466861,2966.0,2965.9,0.01025324]
[1644694019667,1.43466861,2966.0,2964.9,0.1685]
[1644694019866,4.40226551,2966.3,2965.9,0.01025324]
[1644694019867,4.23376551,2966.3,2965.9,0.01025324]
[1644694020165,1.43468121,2966.2,2965.9,0.01025324]
[1644694020366,1.43468121,2966.2,2964.9,0.1685]
[1644694020367,0.02050648,2965.7,2964.9,0.1685]
[1644694022219,0.02050648,2965.7,2965.2,0.00583862]
[1644694022417,0.02050648,2965.7,2965.3,1.01153]
[1644694022616,0.02050648,2965.7,2965.3,2.15436]
[1644694022817,0.1686,2966.3,2965.5,6.9]
[1644694023016,0.1686,2966.3,2965.6,0.1685]
[1644694023217,0.1686,2966.3,2965.6,1.5735]
[1644694023415,0.1686,2966.3,2965.6,1.8735]
[1644694023817,0.1686,2966.3,2965.7,0.84265]
[1644694024017,0.1686,2966.3,2965.8,1.41616]
[1644694024417,0.1686,2966.3,2965.8,2.41616]
[1644694027171,0.1686,2966.3,2965.8,2.42644504]
[1644694027569,0.1686,2966.3,2965.8,1.58378504]
[1644694027771,0.01028193,2966.7,2965.8,1.41528504]
[1644694028170,0.04373161,2966.8,2965.8,1.405]
[1644694028171,0.00260585,2966.8,2965.8,1.405]
[1644694028373,0.01028193,2966.7,2965.9,0.1685]
[1644694028613,0.01028193,2966.7,2966.0,0.405]
[1644694029217,0.00260585,2966.8,2966.0,0.405]
[1644694029417,0.00442302,2966.6,2966.0,0.405]
[1644694029619,0.00442302,2966.6,2966.1,0.84269]
[1644694029817,0.00442302,2966.6,2966.0,0.405]
[1644694030121,0.00442302,2966.6,2965.9,0.1685]
[1644694030318,1.43443445,2966.5,2965.9,0.1685]
[1644694030718,0.00963973,2966.6,2965.9,0.1685]
[1644694031019,1.43445187,2966.5,2965.9,0.1685]
[1644694031217,1.43445187,2966.5,2965.8,0.00964265]
[1644694031618,1.43445187,2966.5,2965.7,0.1685]
[1644694031818,1.43445187,2966.5,2965.8,0.0096425]
[1644694032021,0.00963958,2966.6,2965.8,0.0096425]
[1644694032266,1.43441637,2966.5,2965.8,0.0096425]
[1644694032466,1.43441637,2966.5,2965.8,1.6950125]
[1644694032671,0.00963958,2966.6,2965.8,1.6950125]
[1644694032869,0.00260585,2966.8,2965.8,1.68537]
[1644694033071,0.00963958,2966.6,2965.8,1.6950125]
[1644694033571,1.4344186,2966.5,2965.8,1.6950125]
[1644694033870,0.00963958,2966.6,2965.8,1.8635125]
[1644694034070,0.71130561,2966.8,2965.8,1.85387]
[1644694034271,0.0097755,2966.6,2965.8,1.86364846]
[1644694034672,1.43439995,2966.5,2965.8,1.86364846]
[1644694034872,0.0097755,2966.6,2965.8,1.86364846]
[1644694035276,0.71130561,2966.8,2965.8,1.85387]
[1644694035473,0.71130561,2966.8,2965.8,1.86364854]
[1644694035474,0.00977558,2966.6,2965.8,1.86364854]
[1644694035873,1.43439619,2966.5,2965.8,1.86364854]
[1644694036520,1.43439619,2966.5,2965.8,1.85387]
[1644694036721,0.0097755,2966.6,2965.8,1.86364846]
[1644694036921,1.43440525,2966.5,2965.8,1.86364846]
[1644694037721,1.43440525,2966.5,2965.8,1.85387]
[1644694037928,0.00966696,2966.6,2965.8,1.86353989]
[1644694038121,1.43439605,2966.5,2965.8,1.86353989]
[1644694038922,1.43439605,2966.5,2965.8,1.85387]
[1644694039121,1.43439605,2966.5,2965.8,1.86353989]
[1644694039964,1.43439605,2966.5,2965.8,1.85387]
[1644694040365,8.58962253,2967.2,2965.8,1.86353989]
[1644694040366,0.00966696,2966.6,2965.8,1.86353989]
[1644694040669,1.43438739,2966.5,2965.8,1.86353989]
[1644694040867,1.43438739,2966.5,2965.8,1.69503989]
[1644694041273,1.43438739,2966.5,2965.8,1.68537]
[1644694041473,0.00968042,2966.6,2965.9,0.2528]
[1644694041974,0.00968042,2966.6,2965.9,0.405]
[1644694042378,0.86646478,2967.0,2965.9,0.405]
[1644694042575,0.86646478,2967.0,2966.1,0.84262]
[1644694042576,1.43430998,2966.9,2966.1,0.84262]
[1644694042776,0.00968057,2966.6,2966.1,0.84262]
[1644694043179,1.43431871,2966.5,2966.1,0.84262]
[1644694043816,0.00968064,2966.6,2966.1,0.84262]
[1644694044013,1.43429688,2966.5,2966.1,0.84262]
[1644694045118,0.00967358,2966.6,2966.1,0.84262]
[1644694045316,1.43429857,2966.5,2966.1,0.84262]
[1644694045517,0.89239911,2967.1,2965.9,0.5735]
[1644694045721,1.43429278,2967.0,2965.9,0.5735]
[1644694047461,1.43867909,2967.0,2965.9,0.5735]
[1644694047662,1.43429278,2966.9,2965.9,0.5735]
[1644694048665,1.43429278,2966.9,2966.3,0.01027273]
[1644694049370,1.43429278,2966.8,2966.3,0.01027273]
[1644694049567,1.43429278,2966.7,2965.9,0.5735]
[1644694049772,1.43429278,2966.6,2965.9,0.5735]
[1644694049968,0.80523567,2967.0,2965.9,0.5735]
[1644694049969,0.01027027,2967.0,2966.5,0.01027233]
[1644694050169,1.43430701,2966.9,2966.5,0.01027233]
[1644694050771,1.43430701,2966.9,2965.9,0.5735]
[1644694051032,1.44457742,2967.0,2966.6,0.01027213]
[1644694051225,0.02054426,2966.5,2965.9,0.5735]
[1644694051524,1.43430701,2966.4,2965.9,0.5735]
[1644694052025,1.33430701,2966.4,2965.9,0.5735]
[1644694052225,0.02054426,2966.5,2965.9,0.5735]
[1644694052826,0.02054426,2966.5,2965.9,0.405]
[1644694053429,0.02054426,2966.5,2966.1,0.00588571]
[1644694053626,0.02054426,2966.5,2966.2,0.84267]
[1644694054866,0.02054426,2966.5,2966.2,0.84855541]
[1644694055764,0.02054426,2966.5,2966.2,0.84267]
[1644694055966,0.02054426,2966.5,2966.2,0.85294283]
[1644694056769,0.02054426,2966.5,2966.2,0.84267]
[1644694057169,0.02054426,2966.5,2966.2,0.85294283]
[1644694058070,0.02054426,2966.5,2966.2,0.84267]
[1644694058270,0.02054426,2966.5,2966.2,0.85294283]
[1644694059315,0.02054426,2966.5,2966.2,0.84267]
[1644694059516,0.02054426,2966.5,2966.2,0.85294283]
[1644694060416,0.02054426,2966.5,2966.2,0.84267]
[1644694060618,0.02054426,2966.5,2966.2,0.85294283]
[1644694061620,0.02054426,2966.5,2966.2,0.84267]
[1644694061821,0.02054426,2966.5,2966.2,0.85294283]
[1644694062863,0.02054426,2966.5,2966.2,0.84267]
[1644694063065,0.01027042,2966.9,2966.2,0.01027283]
[1644694064065,1.3596642,2967.1,2966.0,0.486]
[1644694064265,0.01027071,2966.9,2966.4,0.01027243]